Cogmind - Beta 13 @@@ ROGUE MODE // 2024.07.05 @ 19:39:38 Player: ThatBishHoly Result: Destroyed by S-10 Pest with Light Assault Rifle Performance ------------- Evolutions (1) 500 Regions Visited (2) 400 Robots Destroyed (23) 115 Value Destroyed (594) 594 Prototype IDs (1) 20 Alien Tech Used (0) 0 Bonus (0) 0 TOTAL SCORE: 1629 Bonus ------- None Cogmind --------- Core Integrity 0/400 Matter 290/300 Energy 100/100 System Corruption 0% Temperature Cool (0) Movement Core (1350) Ox26 Location -9/Materials Parts ------- > --- POWER (1) -------- (None) > --- PROPULSION (4) --- (None) > --- UTILITY (2) ------ Huge Storage Unit Signal Interpreter > --- WEAPON (2) ------- (None) > --- INVENTORY (25) --- Improved Heat Sink Hammer Peak State ------------ > --- POWER ------------ Ion Engine > --- PROPULSION ------- Wheel Wheel > --- UTILITY ---------- Signal Interpreter Improved Terrain Scanner > --- WEAPON ----------- Particle Gun Hammer > --- INVENTORY -------- Improved Heat Sink Datajack Mining Laser [Rating: 10] Favorites ----------- Power Ion Engine Engine Ion Engine Propulsion Wheel Leg Aluminum Leg Wheel Wheel Utility Signal Interpreter Device Improved Terrain Scanner Storage Huge Storage Unit Processor Signal Interpreter Weapon Assault Rifle Energy Gun Particle Gun Energy Cannon Advanced Beam Cannon Ballistic Gun Assault Rifle Launcher EMP Blaster Special Weapon Mining Laser Impact Weapon Hammer Special Melee Weapon Datajack Build | -11 -10 -9 ------- Run | Yrd Mat Mat Slots Evolved 2 | . . 2 Power . | . . . Propulsion 2 | . . 2 Utility . | . . . Weapon . | . . . Parts Attached 36 | 8 15 13 Power 7 | 1 4 2 Engine 7 | 1 4 2 Core . | . . . Reactor . | . . . Propulsion 9 | 4 5 . Treads . | . . . Leg 3 | . 3 . Wheel 6 | 4 2 . Hover . | . . . Flight . | . . . Utility 6 | 1 3 2 Device 3 | 1 1 1 Storage 2 | . 1 1 Processor 1 | . 1 . Hackware . | . . . Protection . | . . . Artifact . | . . . Weapon 14 | 2 3 9 Energy Gun 1 | . 1 . Energy Cannon 4 | . . 4 Ballistic Gun 2 | 2 . . Ballistic Cannon . | . . . Launcher 2 | . . 2 Special Weapon 1 | . . 1 Impact Weapon 3 | . 1 2 Slashing Weapon . | . . . Piercing Weapon . | . . . Special Melee Weapon 1 | . 1 . Unidentified Prototypes 1 | . . 1 Parts Lost 18 | . 7 11 Power 5 | . 2 3 Propulsion 4 | . 2 2 Utility 2 | . 1 1 Weapon 7 | . 2 5 Highest Loss Streak 5 | . 5 5 To Critical Strikes . | . . . Average Slot Usage (%) 77 | . 93 54 Engine 11 | . 13 8 Leg 6 | . 5 7 Wheel 12 | . 21 . Device 10 | . 13 6 Storage 1 | . . 3 Processor 11 | . 12 11 Energy Gun 1 | . 1 . Energy Cannon 2 | . . 7 Ballistic Gun 11 | . 19 . Impact Weapon 5 | . 4 7 Special Melee Weapon 2 | . 1 3 Naked Turns . | . . . Heaviest Build 95 | 8 88 95 Greatest Support 20 | 20 20 20 Greatest Overweight (x) 31 | . 4 31 Average Overweight (x) . | . . 1 Largest Inventory Capacity 25 | 5 25 25 Average Capacity 7 | 5 6 10 Most Carried 6 | 4 6 5 Average Carried 3 | 1 3 3 Final Capacity 25 | 5 5 25 Final Carried 3 | 3 1 2 Class Distribution -------------------- 66% | Mutant 33% | Scavenger-Mutant Dominant Class ---------------- Mutant | -10/Materials Mutant | -9/Materials Resources | -11 -10 -9 ----------- Run | Yrd Mat Mat Matter Collected 651 | 220 329 102 Remotely . | . . . Salvage Created 958 | 108 410 440 Parts 48 | 9 21 18 Haulers Intercepted 1 | . . 1 Recyclers Shooed . | . . . Parts Field Recycled . | . . . Retrieved Matter . | . . . Parts Self-Destructed . | . . . Prevented . | . . . Kills | -11 -10 -9 ------- Run | Yrd Mat Mat Combat Hostiles Destroyed 16 | . 10 6 Melee 3 | . 1 2 Guns 9 | . 9 . Cannons 1 | . . 1 AOE 2 | . . 2 Classes Destroyed 6 | 2 1 3 Tunneler 3 | 3 . . Hauler 1 | . . 1 Recycler 3 | 1 . 2 Swarmer 3 | . . 3 Grunt 11 | . 10 1 Sentry 2 | . . 2 Best Kill Streak 4 | 4 4 2 Combat Bots Only 4 | . 4 1 Max Kills in Single Turn 2 | 1 1 2 Gunslinging . | . . . Exploded 1 | . . 1 Melee 1 | . 1 1 Uniques/NPCs Destroyed . | . . . Combat | -11 -10 -9 -------- Run | Yrd Mat Mat Hostile Shots Fired 254 | . 80 174 Missed 61 | . 19 42 Damage Taken 2075 | . 862 1213 Core 586 | . 180 406 Absorbed by Shields 88 | . . 88 Core Remaining (%) 64 | 100 28 . Volleys Fired 42 | 5 31 6 Largest 2 | 2 2 2 Hottest 136 | 40 65 136 Shots Fired 64 | 10 45 9 Gun 55 | 10 45 . Cannon 6 | . . 6 Launcher 3 | . . 3 Special . | . . . Kinetic 48 | 10 38 . Thermal 13 | . 7 6 Explosive . | . . . Electromagnetic 3 | . . 3 Robot Hit Streak 12 | 2 12 4 Robot Miss Streak 3 | 1 3 2 Penetration Max . | . . . Secondary Targets 2 | . 2 . Max Gunslinging Chain 1 | . 1 . Shots Hit Robots 58 | 5 38 15 Core Hits 32 | 4 20 8 Critical Kills 2 | . 1 1 Critical Parts Destroyed 4 | . 1 3 Critical Strikes 6 | . 2 4 Smash 6 | . 2 4 Melee Attacks 24 | . 7 17 Impact 24 | . 7 17 Slashing . | . . . Piercing . | . . . Sneak Attacks 2 | . 1 1 Combat Hostiles . | . . . Follow-up Attacks . | . . . Damage Inflicted 1174 | 67 598 509 Guns 518 | 67 451 . Cannons 82 | . . 82 Explosions 119 | . . 119 Melee 455 | . 147 308 Ramming . | . . . Kinetic 434 | 67 367 . Thermal 171 | . 84 87 Explosive . | . . . Electromagnetic 114 | . . 114 Impact 455 | . 147 308 Slashing . | . . . Piercing . | . . . Highest Corruption . | . . . Average Corruption . | . . . Corruption Purged . | . . . Corruption Blocked . | . . . Overload Shots . | . . . Overflow Damage 183 | . 31 152 Projectiles 1 | . . 1 Explosions 26 | . . 26 Melee 156 | . 31 125 Knockbacks 2 | . 2 . Impact 2 | . 2 . Kinetic . | . . . Secondary . | . . . Self-Inflicted Damage 36 | . . 36 Shots 2 | . . 2 Rammed . | . . . Targets Rammed . | . . . Kicked . | . . . Crushed . | . . . Highest Temperature 161 | . 161 138 Average Temperature 56 | . 53 62 Received Heat Transfer 690 | . 489 201 Siege Activations . | . . . Robots Corrupted 1 | . . 1 Combat Hostiles 1 | . . 1 Parts Fried 3 | . . 3 Impact Corruptions 7 | . 1 6 Robots Melted . | . . . Combat Hostiles . | . . . Parts Melted . | . . . Heat Transferred 383 | . 185 198 Parts Sabotaged . | . . . Parts Stolen . | . . . Parts Stripped . | . . . Power Chain Reactions 2 | . . 2 Alert | -11 -10 -9 ------- Run | Yrd Mat Mat Peak Influence 205 | 20 118 205 Initial 40 | . 13 40 Average 56 | 6 53 68 Maximum Alert Level 1 | . . 1 Low Security (%) 99 | 100 100 99 Level 1 . | . . . Level 2 . | . . . Level 3 . | . . . Level 4 . | . . . Level 5 . | . . . High Security . | . . . Max Security . | . . . Squads Dispatched 2 | . 2 . Investigation 1 | . 1 . Extermination . | . . . Reinforcement 1 | . 1 . Assault . | . . . Garrison . | . . . Intercept . | . . . Searches Triggered . | . . . Construction Impeded . | . . . Haulers Reinforced . | . . . Active Scanning Responses . | . . . Cargo Convoy Interrupts . | . . . Stealth | -11 -10 -9 --------- Run | Yrd Mat Mat Distress Signals 3 | . 1 2 Communications Jammed . | . . . Distress Signals . | . . . Times Spotted 31 | . 16 15 Peak Tracking Total 7 | . 7 5 Tactical Retreats 5 | . 1 4 Traps | -11 -10 -9 ------- Run | Yrd Mat Mat Traps Triggered . | . . . Indirectly . | . . . Trap Hack Attempts 1 | . 1 . Triggered . | . . . Disarmed . | . . . Reprogrammed . | . . . Reused . | . . . Traps Extracted . | . . . Installed . | . . . Triggered . | . . . Machines | -11 -10 -9 ---------- Run | Yrd Mat Mat Machines Disabled 2 | . . 2 Max in Single Turn 2 | . . 2 Machines Repaired . | . . . Machines Dismantled . | . . . Machines Sabotaged . | . . . Overloaded Fab Kills . | . . . Hacking | -11 -10 -9 --------- Run | Yrd Mat Mat Machines Accessed 3 | . 3 . Terminals 3 | . 3 . Fabricators . | . . . Repair Stations . | . . . Recycling Units . | . . . Scanalyzers . | . . . Garrison Access . | . . . Total Hacks 8 | . 8 . Successful 5 | . 5 . Failed 3 | . 3 . Catastrophic 1 | . 1 . Database Lockouts . | . . . Manual 7 | . 7 . Terminals 8 | . 8 . Fabricators . | . . . Repair Stations . | . . . Recycling Units . | . . . Scanalyzers . | . . . Garrison Access . | . . . Terminal Hacks 2 | . 2 . Zone Layout 2 | . 2 . Fabricator Hacks . | . . . Repair Station Hacks . | . . . Recycling Unit Hacks . | . . . Scanalyzer . | . . . Garrison Access Hacks . | . . . Unauthorized Hacks 3 | . 3 . Terminals 3 | . 3 . Botnet 2 | . 2 . Sabotage 1 | . 1 . Fabricators . | . . . Repair Stations . | . . . Recycling Units . | . . . Scanalyzers . | . . . Garrison Access . | . . . Data Cores Recovered . | . . . Used . | . . . Hacking Detections 2 | . 2 . Full Trace Events 1 | . 1 . Feedback Events . | . . . Feedback Blocked . | . . . Robot Schematics Acquired . | . . . Robots Built . | . . . Authchips . | . . . Time . | . . . Total Robot Build Rating . | . . . Part Schematics Acquired . | . . . Parts Built . | . . . Authchips . | . . . Time . | . . . Total Part Build Rating . | . . . Parts Repaired . | . . . Time . | . . . Parts Recycled . | . . . Recycled Matter . | . . . Retrieved Matter . | . . . Retrieved Components . | . . . Parts Scanalyzed . | . . . Part Schematics Acquired . | . . . Parts Damaged . | . . . Bothacking | -11 -10 -9 ------------ Run | Yrd Mat Mat Used RIF Installer . | . . . Robots Hacked . | . . . Non-combat . | . . . Combat . | . . . Robot Hacks Applied . | . . . Relay Couplers Released . | . . . Fabnet Peak Effective % . | . . . Robots Rewired . | . . . Allies Hacked . | . . . Hacks Repelled . | . . . Allies | -11 -10 -9 -------- Run | Yrd Mat Mat Total Allies . | . . . Largest Group . | . . . Highest-Rated Group . | . . . Highest-Rated Ally . | . . . Total Orders . | . . . Ally Attacks . | . . . Total Damage . | . . . Kills . | . . . Allies Corrupted . | . . . Allies Melted . | . . . Intel | -11 -10 -9 ------- Run | Yrd Mat Mat Robot Analysis Total . | . . . Derelict Logs Recovered . | . . . Drone Launches . | . . . Drone Recoveries . | . . . Exploration | -11 -10 -9 ------------- Run | Yrd Mat Mat Turns Passed 1279 | 88 692 499 Spaces Moved 737 | 69 449 219 Core 97 | 5 4 88 Treads . | . . . Legs 227 | . 96 131 Wheels 413 | 64 349 . Hover . | . . . Flight . | . . . Fastest Speed 50 | 50 80 100 Average Speed 118 | 77 94 180 Slowest Speed 1600 | 80 200 1600 Overloaded Moves . | . . . Propulsion Burnouts . | . . . Robots Hopped . | . . . Cave-ins Triggered . | . . . Exploration Rate (%) 19 | 3 40 15 Regions Visited 2 Branch Regions . Pre-discovered Areas . | . . . Known Exits Taken 1 | . 1 . Unknown Exits Taken 1 | 1 . . Scrap Searched . | . . . Spaces Dug . | . . . Terrain Destroyed 7 | . . 7 Melee . | . . . Projectile . | . . . AOE 7 | . . 7 Terrain Rammed . | . . . Walls Destroyed . | . . . Machines Disabled . | . . . Actions | -11 -10 -9 --------- Run | Yrd Mat Mat Total 1038 | 92 662 284 Wait 159 | . 139 20 Move 735 | 68 448 219 Hop . | . . . Pick Up 29 | 10 12 7 Fast Attach 4 | . 3 1 Attach 20 | 6 9 5 Detach . | . . . Swap 12 | 2 3 7 Drop 12 | 1 9 2 Fire 42 | 5 31 6 Melee 24 | . 7 17 Ram . | . . . Kick . | . . . Crush . | . . . Escape Stasis . | . . . Rewire . | . . . Trap 1 | . 1 . Miscellaneous . | . . . Route ------- -11/Scrapyard -10/Materials -9/Materials History --------- Turn | Location | Event 20 | -11/Scrapyard | Discovered new exit (range 16) 89 | -11/Scrapyard | Entered Materials 305 | -10/Materials | Build established: Mutant 589 | -10/Materials | Derelicts attacked the area 640 | -10/Materials | Core integrity fell below 50% 707 | -10/Materials | Lost 5 parts (1p2n1u1w) 740 | -10/Materials | Discovered new exit (range 9) 779 | -10/Materials | Identified exit to Materials 781 | -10/Materials | Entered another Materials area 781 | -9/Materials | Evolved 2 slots: Propulsion x2 996 | -9/Materials | Lost 4 parts (1p2n1w) 1074 | -9/Materials | Core integrity fell below 50% 1255 | -9/Materials | Core integrity fell below 20% 1280 | -9/Materials | Destroyed by S-10 Pest with Light Assault Rifle Last Messages --------------- 01254_ EMP Blaster destroyed. 01254_ Destroyed EMP Blaster. 01254_ Pressure Siphon disabled. 01254_ R-06 Scavenger destroyed. 01254_ S-10 Pest destroyed. 01254_ Door malfunctions. 01257_ Acquired 1 matter. 01258_ Mining Laser destroyed. 01263_ U-05 Engineer lays Concrete. 01269_ S-10 Pest destroyed. 01269_ U-05 Engineer lays Concrete. 01270_ R-06 Scavenger collects Corrupted Lgt. Ion Engine. 01270_ Acquired 3 matter. 01270_ U-05 Engineer lays Concrete. 01274_ R-06 Scavenger collects Corrupted Sml. Storage Unit. 01274_ U-05 Engineer lays Concrete. 01277_ R-06 Scavenger collects Flight Unit. 01278_ U-05 Engineer lays Concrete. Map ----- +----------------------------------------------------+ | ?????????????????????????????????????????????????? | | ?????????????????????????????????????????????????? | | ?????????????????????????????????????????????????? | | ?????????????????????????????????????????????????? | | ?????????????????????????????????????????????????? | | ?????????????????????????????????????????????????? | | ?????????????????????????????????????????????????? | | ?????????????????????????????????????????????????? | | ???????????????????? ????????????????????????????? | | ??????????????????? ??????????????????????????? | | ??????????????????? #??????????????????????????? | | ??????????????????? #??????????????????????????? | | ??????????????????# ##?????????????????????????? | | ??????????????????# ??????????????????????????? | | ??????????????????# "?????#####????????????????? | | ??????????????????# #?????# #????????????????? | | ??????????????????# #?????# !!#????????????????? | | ???????????????#### ####### #????????????????? | | ??????????????? # ##?????? #???????? | | ????????########## # ##?????" #???????? | | ????????# """ # """" # ##????" #???????? | | ????????# ! "R" # """" #[ ##?? #???????? | | ????????# " " # %%% ##/###? #???????? | | ????????# # %%= ]% s%# #???????? | | ????????# + % s wu !=%r%+ #???????? | | ????????# """ # %%%u@ u% # #???????? | | ????????# """ # %%%% ####### #??????? | | ????????# """ # """" ################??????? | | ????????#! # # #???????????? | | ?????????######### # #???????????? | | ?????????????????# """" # #???????????? | | ?????????????##### """" # """ #???????????? | | ?????????????+ """" # """"" #???????????? | | ?????????????# + """"" #???????????? | | ?????????????# # """"" #???????????? | | ?????????????# #####+## # """ #???????????? | | ?????????????# # # ###########???????????? | | ?????????????# + ! # #????????????????? | | ?????????????# ## # #????????????????? | | ?????????????# ## """ # #????????????????? | | ?????????????# ## """ ###### #????????????????? | | ?????????????# ## """ #????# #????????????????? | | ?????????????# ############## #????????????????? | | ?????????????# % ##########???????? | | ???????????###+##############= # #???????? | | ???????????# # # # """"" #???????? | | ???????????# """ # # # """"" #???????? | | ???????????# """ # # # """"" #???????? | | ???????????# """ # + + """"" #???????? | | ???????????# """ # # # """"" #???????? | +----------------------------------------------------+ Best States ------------- Heat Dissipation 42 Energy Generation 12 Energy Capacity 265 Matter Stores 300 Matter Capacity 300 Sight Range 16 Terrain Scan Range 16 Terrain Scan Density 10 Evasion (%) 55 Item Schematics ----------------- None Robot Schematics ------------------ None Fabricated ------------ Nothing Alien Tech Used ----------------- None Achievements -------------- Brute Force Challenges ------------ None Game ------ Seed RiotSniperKinecellerator Manual? 0 Play Time 00:19:45 Cumulative 23.3 hours Start 2024.07.05 @ 19:21:30 End 2024.07.05 @ 19:39:38 Sessions 1 Manual Loads 0 Difficulty Rogue Special Mode None Game No. 69 Rogue 69 Adventurer 0 Explorer 0 Win Type - Total 0 Types 0/0/0/0/0/0/0/0/0 Lore% 16 Gallery% 31 Achievement% 23 Wizard Run 0 Options --------- Layout 1 ASCII 0 Keyboard 0 Movement Mouse Keybinds 0 Fullscreen 1 Font 48/Smallcaps Map View 25x17 Zoom Use 97% Tactical HUD 1 Map Filters NONE Filters NONE Steam 1 RUN: bf81d479-ceb1-412c-86fb-4252a3fb946f